fUSD/lending_fUSD_20260512
["ID","MTS","AMOUNT","RATE_DAILY","PERIOD"]
[422077505,1778553046000,-1020.60422882,0.00039508,2]
[422077515,1778553046000,-1253.0001,0.00039716,120]
[422077504,1778553046000,-500.0,0.00039452,5]
[422077508,1778553046000,-3047.2589,0.00039584,2]
[422077509,1778553046000,-522.58,0.000396,30]
[422077507,1778553046000,-3989.38,0.00039575,120]
[422077510,1778553046000,-937.0936,0.00039626,30]
[422077513,1778553046000,-500.0,0.00039671,60]
[422077514,1778553046000,-1500.0,0.000397,120]
[422077511,1778553046000,-150.0,0.00039669,2]
[422077512,1778553046000,-500.0,0.00039671,60]
[422077516,1778553046000,-3047.2589,0.00039721,2]
[422077518,1778553046000,-300.0,0.00039726,120]
[422077517,1778553046000,-1562.0,0.00039726,30]
[422077519,1778553046000,-300.0,0.00039726,120]
[422077520,1778553046000,-300.0,0.00039726,120]
[422077523,1778553046000,-256.0,0.00039812,120]
[422077521,1778553046000,-300.0,0.00039726,120]
[422077522,1778553046000,-503.0,0.00039736,18]
[422077468,1778553046000,-25000.0,0.00038991,15]
[422077503,1778553046000,-1562.0,0.00039452,30]
[422077499,1778553046000,-310.7108,0.0003931,2]
[422077506,1778553046000,-201.93286099,0.00039508,2]
[422077495,1778553046000,-5800.0,0.00039302,14]
[422077494,1778553046000,-5800.0,0.00039293,14]
[422077475,1778553046000,-3047.2589,0.00039036,2]
[422077472,1778553046000,-681.936,0.00039,120]
[422077469,1778553046000,-3176.4,0.00039,14]
[422077471,1778553046000,-160.0,0.00039,120]
[422077474,1778553046000,-19234.67559057,0.00039,15]
[422077476,1778553046000,-429.41184255,0.0003904,30]
[422077479,1778553046000,-1562.0,0.00039178,30]
[422077477,1778553046000,-194.82682534,0.000391,30]
[422077478,1778553046000,-3047.2589,0.00039173,2]
[422077481,1778553046000,-5800.0,0.00039217,14]
[422077491,1778553046000,-5800.0,0.00039268,14]
[422077480,1778553046000,-187.35,0.00039213,30]
[422077473,1778553046000,-372.72,0.00039,2]
[422077483,1778553046000,-5800.0,0.00039234,14]
[422077485,1778553046000,-3989.35,0.00039249,120]
[422077488,1778553046000,-5800.0,0.00039251,14]
[422077486,1778553046000,-602.743928,0.00039249,2]
[422077489,1778553046000,-5800.0,0.00039259,14]
[422077484,1778553046000,-5800.0,0.00039242,14]
[422077482,1778553046000,-5800.0,0.00039225,14]
[422077490,1778553046000,-250.67961379,0.00039266,2]
[422077487,1778553046000,-38542.17374256,0.00039249,2]
[422077493,1778553046000,-5800.0,0.00039285,14]
[422077492,1778553046000,-5800.0,0.00039276,14]
[422077501,1778553046000,-3047.2589,0.00039447,2]
[422077567,1778553047000,-500.0,0.0004,120]
[422077557,1778553047000,-500.0,0.0004,120]
[422077562,1778553047000,-500.0,0.0004,120]
[422077565,1778553047000,-500.0,0.0004,120]
[422077566,1778553047000,-500.0,0.0004,120]
[422077558,1778553047000,-500.0,0.0004,120]
[422077560,1778553047000,-500.0,0.0004,120]
[422077563,1778553047000,-500.0,0.0004,120]
[422077559,1778553047000,-500.0,0.0004,120]
[422077556,1778553047000,-150.231904,0.0004,120]
[422077564,1778553047000,-500.0,0.0004,120]
[422077561,1778553047000,-500.0,0.0004,120]
[422077569,1778553047000,-500.0,0.0004,120]
[422077570,1778553047000,-500.0,0.0004,120]
[422077579,1778553047000,-318.39,0.0004,120]
[422077580,1778553047000,-1163.0,0.0004,120]
[422077581,1778553047000,-500.0,0.0004,30]
[422077577,1778553047000,-152.0,0.0004,120]
[422077575,1778553047000,-500.0,0.0004,120]
[422077571,1778553047000,-500.0,0.0004,120]
[422077572,1778553047000,-500.0,0.0004,120]
[422077573,1778553047000,-500.0,0.0004,120]
[422077578,1778553047000,-18619.0,0.0004,120]
[422077576,1778553047000,-304.03326269,0.0004,120]
[422077583,1778553047000,-178.99855138,0.00040017,120]
[422077568,1778553047000,-500.0,0.0004,120]
[422077551,1778553047000,-17572.48,0.0004,120]
[422077525,1778553047000,-3047.2589,0.00039858,2]
[422077549,1778553047000,-213.23,0.0004,120]
[422077584,1778553047000,-209.40437684,0.00040056,2]
[422077529,1778553047000,-3989.38,0.00039901,120]
[422077527,1778553047000,-759.04,0.00039863,60]
[422077528,1778553047000,-30223.55,0.00039863,60]
[422077526,1778553047000,-50000.0,0.00039863,60]
[422077530,1778553047000,-400.0,0.0003997,2]
[422077533,1778553047000,-1798.80895522,0.00039999,30]
[422077535,1778553047000,-362.512,0.0004,120]
[422077532,1778553047000,-3047.2589,0.00039995,2]
[422077541,1778553047000,-22499.99,0.0004,120]
[422077536,1778553047000,-1840.73567573,0.0004,120]
[422077542,1778553047000,-440.0,0.0004,120]
[422077550,1778553047000,-754.88,0.0004,120]
[422077537,1778553047000,-202.0,0.0004,120]
[422077534,1778553047000,-1562.0,0.0004,30]
[422077540,1778553047000,-127700.0,0.0004,14]
[422077554,1778553047000,-500.0,0.0004,120]
[422077544,1778553047000,-22500.0,0.0004,120]
[422077555,1778553047000,-500.0,0.0004,120]
[422077545,1778553047000,-400.88,0.0004,120]
[422077546,1778553047000,-816.72,0.0004,120]
[422077552,1778553047000,-161.0,0.0004,120]
[422077547,1778553047000,-207.11,0.0004,120]
[422077553,1778553047000,-500.0,0.0004,120]
[422077543,1778553047000,-22499.99,0.0004,120]
[422077548,1778553047000,-22500.0,0.0004,120]
[422077531,1778553047000,-702.93465867,0.0003997,2]
[422077586,1778553047000,-717.3645631,0.00040076,2]
[422077582,1778553047000,-2048.39887577,0.0004,120]
[422077585,1778553047000,-2987.6011,0.00040061,30]
[422077619,1778553047000,-152.0,0.00040459,30]
[422077620,1778553047000,-1483.54939322,0.00040477,120]
[422077630,1778553047000,-1734.62772924,0.00040545,30]
[422077629,1778553047000,-300.0,0.000405,14]
[422077623,1778553047000,-5343.4579594,0.000405,120]
[422077622,1778553047000,-12404.93,0.000405,120]
[422077624,1778553047000,-20000.0,0.000405,120]
[422077625,1778553047000,-732.62596944,0.000405,120]
[422077618,1778553047000,-152.0,0.00040459,30]
[422077621,1778553047000,-152.0,0.00040499,30]
[422077626,1778553047000,-500.0,0.000405,14]
[422077627,1778553047000,-300.0,0.000405,14]
[422077617,1778553047000,-5931.0,0.00040458,30]
[422077631,1778553047000,-1672.7364795,0.00040546,30]
[422077633,1778553047000,-151.0,0.00040547,30]
[422077636,1778553047000,-500.0,0.00040547,30]
[422077635,1778553047000,-152.0,0.00040547,30]
[422077639,1778553047000,-203.86501493,0.00040547,30]
[422077638,1778553047000,-1613.0535,0.00040547,30]
[422077641,1778553047000,-268.7,0.0004055,120]
[422077642,1778553047000,-3989.38,0.00040553,120]
[422077637,1778553047000,-151.0,0.00040547,30]
[422077640,1778553047000,-1562.0,0.00040548,30]
[422077632,1778553047000,-1235.18214925,0.00040547,30]
[422077643,1778553047000,-318.45343967,0.0004059,120]
[422077587,1778553047000,-3176.4,0.000401,14]
[422077634,1778553047000,-500.0,0.00040547,30]
[422077610,1778553047000,-865.0,0.00040346,5]
[422077628,1778553047000,-200.0,0.000405,14]
[422077613,1778553047000,-12994.0,0.00040375,120]
[422077589,1778553047000,-6002.44267795,0.00040181,12]
[422077614,1778553047000,-13871.5060622,0.000404,120]
[422077588,1778553047000,-3047.2589,0.00040132,2]
[422077592,1778553047000,-6002.44267792,0.00040181,12]
[422077590,1778553047000,-6002.44267792,0.00040181,12]
[422077591,1778553047000,-6002.44267792,0.00040181,12]
[422077594,1778553047000,-6002.44267792,0.00040181,12]
[422077593,1778553047000,-6002.44267792,0.00040181,12]
[422077596,1778553047000,-6002.44267792,0.00040181,12]
[422077603,1778553047000,-675.18,0.0004029,60]
[422077595,1778553047000,-6002.44267792,0.00040181,12]
[422077597,1778553047000,-6002.44267792,0.00040181,12]
[422077602,1778553047000,-1562.0,0.00040274,30]
[422077604,1778553047000,-190.16,0.0004029,60]
[422077611,1778553047000,-691.0,0.00040346,5]
[422077612,1778553047000,-40700.77787597,0.0004035,120]
[422077600,1778553047000,-304.6948,0.00040269,2]
[422077609,1778553047000,-500.54726343,0.0004031,30]
[422077607,1778553047000,-193.03,0.000403,17]
[422077615,1778553047000,-152.0,0.00040418,30]
[422077616,1778553047000,-152.0,0.00040418,30]
[422077606,1778553047000,-554.35,0.0004029,60]
[422077608,1778553047000,-500.0,0.0004031,30]
[422077598,1778553047000,-3989.38,0.00040227,120]
[422077599,1778553047000,-3047.26,0.00040269,2]
[422077601,1778553047000,-310.7107,0.00040269,2]
[422077605,1778553047000,-275.67,0.0004029,60]
[422077693,1778553048000,-7216.0,0.00040838,120]
[422077686,1778553048000,-5932.0,0.00040792,30]
[422077683,1778553048000,-171.2143659,0.00040774,30]
[422077684,1778553048000,-271.94,0.00040776,10]
[422077685,1778553048000,-254.52,0.00040776,10]
[422077682,1778553048000,-152.50547285,0.00040774,30]
[422077671,1778553048000,-3822.63757246,0.00040744,7]
[422077678,1778553048000,-444.39132273,0.00040763,60]
[422077676,1778553048000,-566.82,0.00040757,120]
[422077675,1778553048000,-661.29,0.00040757,120]
[422077673,1778553048000,-189.55,0.0004075,120]
[422077695,1778553048000,-1483.29717748,0.00040881,12]
[422077677,1778553048000,-500.0,0.00040763,60]
[422077694,1778553048000,-3989.38,0.0004088,120]
[422077696,1778553048000,-661.22182006,0.00040901,2]
[422077688,1778553048000,-515.0,0.000408,14]
[422077687,1778553048000,-522.58,0.000408,30]
[422077689,1778553048000,-900.0,0.000408,14]
[422077691,1778553048000,-950.0,0.000408,14]
[422077692,1778553048000,-1562.0,0.00040822,30]
[422077707,1778553048000,-1148.61238259,0.00040999,30]
[422077698,1778553048000,-22593.93511509,0.0004091,2]
[422077699,1778553048000,-177.88262,0.0004094,120]
[422077697,1778553048000,-661.22182006,0.00040903,2]
[422077708,1778553048000,-151.0,0.00040999,30]
[422077709,1778553048000,-500.0,0.00040999,30]
[422077701,1778553048000,-661.29,0.00040962,120]
[422077668,1778553048000,-3822.63757246,0.00040744,7]
[422077690,1778553048000,-1100.0,0.000408,14]
[422077674,1778553048000,-324.45,0.0004075,120]
[422077648,1778553048000,-691.0,0.000406,30]
[422077679,1778553048000,-400.0,0.0004077,3]
[422077705,1778553048000,-711.13005733,0.00040997,2]
[422077644,1778553048000,-161.0,0.000406,120]
[422077645,1778553048000,-309.0,0.000406,30]
[422077647,1778553048000,-1000.0,0.000406,30]
[422077646,1778553048000,-500.0,0.000406,14]
[422077653,1778553048000,-5580.54,0.00040639,2]
[422077652,1778553048000,-217.15233878,0.00040604,2]
[422077650,1778553048000,-200.0,0.000406,14]
[422077651,1778553048000,-300.0,0.000406,14]
[422077649,1778553048000,-300.0,0.000406,14]
[422077654,1778553048000,-1444.0,0.00040658,120]
[422077655,1778553048000,-500.0,0.000407,14]
[422077656,1778553048000,-300.0,0.000407,14]
[422077672,1778553048000,-2778.80355088,0.00040744,7]
[422077658,1778553048000,-300.0,0.000407,14]
[422077657,1778553048000,-200.0,0.000407,14]
[422077664,1778553048000,-3822.63757246,0.00040744,7]
[422077667,1778553048000,-3822.63757246,0.00040744,7]
[422077661,1778553048000,-3822.63757246,0.00040744,7]
[422077660,1778553048000,-3822.63757246,0.00040744,7]
[422077666,1778553048000,-3822.63757246,0.00040744,7]
[422077665,1778553048000,-3822.63757246,0.00040744,7]
[422077662,1778553048000,-3822.63757246,0.00040744,7]
[422077663,1778553048000,-3822.63757246,0.00040744,7]
[422077669,1778553048000,-3822.63757246,0.00040744,7]
[422077680,1778553048000,-400.0,0.0004077,3]
[422077681,1778553048000,-168.01130534,0.00040773,120]
[422077670,1778553048000,-3822.63757246,0.00040744,7]
[422077659,1778553048000,-3822.63757246,0.00040744,7]
[422077704,1778553048000,-400.0,0.00040997,2]
[422077703,1778553048000,-400.0,0.0004097,3]
[422077702,1778553048000,-4849.44,0.00040963,2]
[422077742,1778553048000,-681.768753,0.00041,28]
[422077744,1778553048000,-269.189159,0.00041,30]
[422077741,1778553048000,-681.768753,0.00041,28]
[422077740,1778553048000,-681.768753,0.00041,28]
[422077745,1778553048000,-269.189159,0.00041,30]
[422077747,1778553048000,-246.469525,0.00041,30]
[422077758,1778553048000,-5027.373871,0.00041,20]
[422077757,1778553048000,-208.510759,0.00041,30]
[422077755,1778553048000,-208.510759,0.00041,30]
[422077750,1778553048000,-7854.01291655,0.00041,120]
[422077749,1778553048000,-151.0,0.00041,30]
[422077752,1778553048000,-5027.373871,0.00041,20]
[422077748,1778553048000,-151.0,0.00041,30]
[422077746,1778553048000,-269.189159,0.00041,30]
[422077753,1778553048000,-208.510759,0.00041,30]
[422077754,1778553048000,-5027.373871,0.00041,20]
[422077751,1778553048000,-208.510759,0.00041,30]
[422077756,1778553048000,-5027.373871,0.00041,20]
[422077759,1778553048000,-284.424733,0.00041,7]
[422077761,1778553048000,-284.424733,0.00041,7]
[422077770,1778553048000,-500.0,0.00041096,30]
[422077760,1778553048000,-284.424733,0.00041,7]
[422077766,1778553048000,-219.362548,0.00041,30]
[422077768,1778553048000,-191.91529612,0.00041029,2]
[422077762,1778553048000,-284.424733,0.00041,7]
[422077767,1778553048000,-171.81453,0.00041,30]
[422077764,1778553048000,-151.0,0.00041,30]
[422077765,1778553048000,-151.0,0.00041,30]
[422077700,1778553048000,-1000.0,0.00040941,120]
[422077739,1778553048000,-681.768753,0.00041,28]
[422077743,1778553048000,-269.189159,0.00041,30]
[422077769,1778553048000,-1448.6,0.00041041,120]
[422077737,1778553048000,-151.0,0.00041,30]
[422077738,1778553048000,-154.040383,0.00041,30]
[422077706,1778553048000,-557.5788265,0.00040999,30]
[422077763,1778553048000,-151.0,0.00041,30]
[422077713,1778553048000,-464.05848484,0.00040999,30]
[422077714,1778553048000,-152.0,0.00040999,30]
[422077712,1778553048000,-500.0,0.00040999,42]
[422077722,1778553048000,-151.0,0.00040999,42]
[422077716,1778553048000,-500.0,0.00040999,30]
[422077717,1778553048000,-500.0,0.00040999,42]
[422077718,1778553048000,-168.3888056,0.00040999,30]
[422077719,1778553048000,-2345.0,0.00040999,30]
[422077721,1778553048000,-1366.07479456,0.00040999,42]
[422077720,1778553048000,-151.0,0.00040999,30]
[422077711,1778553048000,-151.0,0.00040999,42]
[422077710,1778553048000,-1191.11104075,0.00040999,42]
[422077724,1778553048000,-189.57680101,0.00040999,30]
[422077715,1778553048000,-152.0,0.00040999,42]
[422077733,1778553048000,-151.0,0.00041,30]
[422077732,1778553048000,-209.28,0.00041,31]
[422077728,1778553048000,-19011.1608719,0.00041,30]
[422077729,1778553048000,-1538019.56395409,0.00041,30]
[422077731,1778553048000,-151.0,0.00041,30]
[422077736,1778553048000,-151.0,0.00041,30]
[422077727,1778553048000,-174.21697164,0.00040999,42]
[422077723,1778553048000,-1555.5,0.00040999,30]
[422077730,1778553048000,-203.5752014,0.00041,10]
[422077735,1778553048000,-151.0,0.00041,30]
[422077734,1778553048000,-151.0,0.00041,30]
[422077726,1778553048000,-168.3888056,0.00040999,30]
[422077725,1778553048000,-196.59114265,0.00040999,42]
[422077797,1778553049000,-151.0,0.00041096,7]
[422077810,1778553049000,-402.845025,0.00041096,7]
[422077800,1778553049000,-151.0,0.00041096,120]
[422077801,1778553049000,-156.766326,0.00041096,120]
[422077798,1778553049000,-151.0,0.00041096,7]
[422077806,1778553049000,-319.65253,0.00041096,120]
[422077811,1778553049000,-319.65253,0.00041096,120]
[422077808,1778553049000,-180.900285,0.00041096,120]
[422077807,1778553049000,-402.845025,0.00041096,7]
[422077814,1778553049000,-402.845025,0.00041096,7]
[422077816,1778553049000,-253.75218,0.00041096,120]
[422077799,1778553049000,-176.930175,0.00041096,120]
[422077827,1778553049000,-1727.359491,0.00041096,120]
[422077815,1778553049000,-151.0,0.00041096,120]
[422077812,1778553049000,-151.0,0.00041096,120]
[422077813,1778553049000,-402.845025,0.00041096,7]
[422077818,1778553049000,-151.0,0.00041096,120]
[422077828,1778553049000,-1727.359491,0.00041096,120]
[422077817,1778553049000,-253.75218,0.00041096,120]
[422077829,1778553049000,-151.0,0.00041096,120]
[422077822,1778553049000,-1359.434225,0.00041096,120]
[422077825,1778553049000,-160.910718,0.00041096,120]
[422077823,1778553049000,-1359.434225,0.00041096,120]
[422077824,1778553049000,-1359.434225,0.00041096,120]
[422077805,1778553049000,-319.65253,0.00041096,120]
[422077809,1778553049000,-319.65253,0.00041096,120]
[422077794,1778553049000,-170.501813,0.00041096,120]
[422077786,1778553049000,-152.696414,0.00041096,120]
[422077804,1778553049000,-151.0,0.00041096,120]
[422077826,1778553049000,-1359.434225,0.00041096,120]
[422077772,1778553049000,-500.0,0.00041096,30]
[422077782,1778553049000,-255.202259,0.00041096,120]
[422077771,1778553049000,-500.0,0.00041096,42]
[422077773,1778553049000,-500.0,0.00041096,30]
[422077775,1778553049000,-500.0,0.00041096,30]
[422077774,1778553049000,-500.0,0.00041096,30]
[422077776,1778553049000,-298.52351853,0.00041096,41]
[422077778,1778553049000,-1562.0,0.00041096,120]
[422077780,1778553049000,-484.0,0.00041096,120]
[422077779,1778553049000,-193.0,0.00041096,60]
[422077777,1778553049000,-257.8035202,0.00041096,30]
[422077796,1778553049000,-151.0,0.00041096,7]
[422077781,1778553049000,-166.00706,0.00041096,120]
[422077785,1778553049000,-255.202259,0.00041096,120]
[422077784,1778553049000,-255.202259,0.00041096,120]
[422077789,1778553049000,-1550.621872,0.00041096,120]
[422077792,1778553049000,-151.0,0.00041096,120]
[422077791,1778553049000,-156.815486,0.00041096,120]
[422077790,1778553049000,-1550.621872,0.00041096,120]
[422077787,1778553049000,-1550.621872,0.00041096,120]
[422077788,1778553049000,-1550.621872,0.00041096,120]
[422077793,1778553049000,-151.0,0.00041096,120]
[422077795,1778553049000,-175.076766,0.00041096,120]
[422077802,1778553049000,-188.43258,0.00041096,120]
[422077803,1778553049000,-292.846108,0.00041096,120]
[422077783,1778553049000,-255.202259,0.00041096,120]
[422077819,1778553049000,-253.75218,0.00041096,120]
[422077830,1778553049000,-1727.359491,0.00041096,120]
[422077820,1778553049000,-151.0,0.00041096,120]
[422077863,1778553049000,-334.558121,0.00041096,14]
[422077859,1778553049000,-151.0,0.00041096,120]
[422077862,1778553049000,-205.141724,0.00041096,120]
[422077872,1778553049000,-151.0,0.00041096,120]
[422077865,1778553049000,-151.0,0.00041096,120]
[422077873,1778553049000,-1257.887749,0.00041096,30]
[422077864,1778553049000,-334.558121,0.00041096,14]
[422077867,1778553049000,-4976.925226,0.00041096,120]
[422077866,1778553049000,-4976.925226,0.00041096,120]
[422077874,1778553049000,-151.0,0.00041096,120]
[422077869,1778553049000,-4976.925226,0.00041096,120]
[422077870,1778553049000,-249.865869,0.00041096,120]
[422077875,1778553049000,-218.388227,0.00041096,120]
[422077871,1778553049000,-1257.887749,0.00041096,30]
[422077876,1778553049000,-1257.887749,0.00041096,30]
[422077877,1778553049000,-251.877461,0.00041096,120]
[422077878,1778553049000,-1257.887749,0.00041096,30]
[422077879,1778553049000,-214.93337,0.00041096,120]
[422077880,1778553049000,-151.0,0.00041096,120]
[422077881,1778553049000,-151.0,0.00041096,120]
[422077882,1778553049000,-165.344479,0.00041096,120]
[422077883,1778553049000,-903.918479,0.00041096,120]
[422077885,1778553049000,-166.191604,0.00041096,120]
[422077884,1778553049000,-151.0,0.00041096,120]
[422077821,1778553049000,-253.75218,0.00041096,120]
[422077861,1778553049000,-255.222005,0.00041096,120]
[422077860,1778553049000,-334.558121,0.00041096,14]
[422077868,1778553049000,-4976.925226,0.00041096,120]
[422077858,1778553049000,-334.558121,0.00041096,14]
[422077832,1778553049000,-408.322405,0.00041096,120]
[422077857,1778553049000,-151.0,0.00041096,120]
[422077840,1778553049000,-3510.598437,0.00041096,120]
[422077833,1778553049000,-408.322405,0.00041096,120]
[422077835,1778553049000,-408.322405,0.00041096,120]
[422077831,1778553049000,-1727.359491,0.00041096,120]
[422077837,1778553049000,-3510.598437,0.00041096,120]
[422077836,1778553049000,-173.556983,0.00041096,120]
[422077839,1778553049000,-3510.598437,0.00041096,120]
[422077834,1778553049000,-408.322405,0.00041096,120]
[422077842,1778553049000,-151.0,0.00041096,120]
[422077852,1778553049000,-3175.820433,0.00041096,120]
[422077843,1778553049000,-159.760057,0.00041096,120]
[422077838,1778553049000,-182.8389,0.00041096,120]
[422077855,1778553049000,-501.694731,0.00041096,120]
[422077856,1778553049000,-501.694731,0.00041096,120]
[422077848,1778553049000,-151.0,0.00041096,120]
[422077854,1778553049000,-501.694731,0.00041096,120]
[422077853,1778553049000,-501.694731,0.00041096,120]
[422077850,1778553049000,-3175.820433,0.00041096,120]
[422077846,1778553049000,-195.024865,0.00041096,120]
[422077849,1778553049000,-3175.820433,0.00041096,120]
[422077851,1778553049000,-3175.820433,0.00041096,120]
[422077845,1778553049000,-159.760057,0.00041096,120]
[422077841,1778553049000,-3510.598437,0.00041096,120]
[422077844,1778553049000,-159.760057,0.00041096,120]
[422077847,1778553049000,-159.760057,0.00041096,120]
[422077925,1778553050000,-900.0,0.00041151,30]
[422077929,1778553050000,-900.0,0.00041151,30]
[422077928,1778553050000,-900.0,0.00041151,30]
[422077927,1778553050000,-900.0,0.00041151,30]
[422077920,1778553050000,-159.32,0.000411,120]
[422077924,1778553050000,-900.0,0.00041151,30]
[422077919,1778553050000,-159.32118637,0.000411,120]
[422077918,1778553050000,-159.32118637,0.000411,120]
[422077921,1778553050000,-242.73254772,0.00041108,120]
[422077917,1778553050000,-159.32118637,0.000411,120]
[422077926,1778553050000,-900.0,0.00041151,30]
[422077922,1778553050000,-7609.19,0.00041118,2]
[422077934,1778553050000,-900.0,0.00041151,30]
[422077944,1778553050000,-900.0,0.00041151,30]
[422077930,1778553050000,-900.0,0.00041151,30]
[422077935,1778553050000,-900.0,0.00041151,30]
[422077933,1778553050000,-900.0,0.00041151,30]
[422077932,1778553050000,-900.0,0.00041151,30]
[422077936,1778553050000,-900.0,0.00041151,30]
[422077938,1778553050000,-900.0,0.00041151,30]
[422077939,1778553050000,-900.0,0.00041151,30]
[422077937,1778553050000,-900.0,0.00041151,30]
[422077947,1778553050000,-900.0,0.00041151,30]
[422077943,1778553050000,-900.0,0.00041151,30]
[422077948,1778553050000,-900.0,0.00041151,30]
[422077913,1778553050000,-159.32118637,0.000411,120]
[422077931,1778553050000,-900.0,0.00041151,30]
[422077923,1778553050000,-900.0,0.00041151,30]
[422077886,1778553050000,-167.88894362,0.00041096,60]
[422077915,1778553050000,-159.32118637,0.000411,120]
[422077887,1778553050000,-167.88894362,0.00041096,120]
[422077888,1778553050000,-193.85052234,0.00041096,120]
[422077891,1778553050000,-283.01,0.000411,120]
[422077889,1778553050000,-161.0,0.000411,120]
[422077897,1778553050000,-151.73446321,0.000411,120]
[422077898,1778553050000,-151.73446321,0.000411,120]
[422077895,1778553050000,-151.73446321,0.000411,120]
[422077893,1778553050000,-151.73446321,0.000411,120]
[422077894,1778553050000,-151.73446321,0.000411,120]
[422077892,1778553050000,-151.73446321,0.000411,120]
[422077890,1778553050000,-341.8816,0.000411,60]
[422077896,1778553050000,-151.73446321,0.000411,120]
[422077901,1778553050000,-159.32118637,0.000411,120]
[422077899,1778553050000,-151.73446321,0.000411,120]
[422077903,1778553050000,-159.32118637,0.000411,120]
[422077902,1778553050000,-159.32118637,0.000411,120]
[422077904,1778553050000,-159.32118637,0.000411,120]
[422077905,1778553050000,-159.32118637,0.000411,120]
[422077908,1778553050000,-159.32118637,0.000411,120]
[422077906,1778553050000,-159.32118637,0.000411,120]
[422077900,1778553050000,-151.73,0.000411,120]
[422077907,1778553050000,-159.32118637,0.000411,120]
[422077909,1778553050000,-159.32118637,0.000411,120]
[422077911,1778553050000,-159.32118637,0.000411,120]
[422077910,1778553050000,-159.32118637,0.000411,120]
[422077946,1778553050000,-900.0,0.00041151,30]
[422077914,1778553050000,-159.32118637,0.000411,120]
[422077916,1778553050000,-159.32118637,0.000411,120]
[422077940,1778553050000,-900.0,0.00041151,30]
[422077912,1778553050000,-159.32118637,0.000411,120]
[422077949,1778553050000,-900.0,0.00041151,30]
[422077980,1778553050000,-162.380719,0.00041152,112]
[422077975,1778553050000,-666.72878,0.00041152,112]
[422077979,1778553050000,-151.0,0.00041152,112]
[422077982,1778553050000,-151.0,0.00041152,112]
[422077976,1778553050000,-263.95631916,0.00041152,112]
[422077983,1778553050000,-182.81273,0.00041152,112]
[422077986,1778553050000,-231.82907959,0.00041152,2]
[422077996,1778553050000,-769.95532185,0.0004118,30]
[422077985,1778553050000,-162.380719,0.00041152,112]
[422077990,1778553050000,-151.0,0.00041176,30]
[422077988,1778553050000,-155.20974893,0.00041173,14]
[422077989,1778553050000,-150.0,0.00041176,2]
[422077991,1778553050000,-151.0,0.00041176,30]
[422077992,1778553050000,-151.0,0.00041176,30]
[422077994,1778553050000,-2000.0,0.00041176,120]
[422077993,1778553050000,-152.225093,0.00041176,30]
[422077987,1778553050000,-151.0,0.00041172,14]
[422077995,1778553050000,-495.13694843,0.00041176,120]
[422077999,1778553050000,-255.202259,0.0004118,120]
[422077997,1778553050000,-255.202259,0.0004118,120]
[422077998,1778553050000,-255.202259,0.0004118,120]
[422078002,1778553050000,-255.202259,0.0004118,120]
[422078001,1778553050000,-255.202259,0.0004118,120]
[422078004,1778553050000,-255.202259,0.0004118,120]
[422078005,1778553050000,-255.202259,0.0004118,120]
[422078000,1778553050000,-255.202259,0.0004118,120]
[422077941,1778553050000,-900.0,0.00041151,30]
[422077977,1778553050000,-152.0,0.00041152,112]
[422077981,1778553050000,-2345.0,0.00041152,112]
[422078003,1778553050000,-255.202259,0.0004118,120]
[422077978,1778553050000,-500.0,0.00041152,112]